bitfinex-derivatives/quotes_BTCF0:USTF0_20250101
["timestamp","ask_amount","ask_price","bid_price","bid_amount"]
[1735716134761,0.002,93805.0,93804.0,0.053415]
[1735716136451,0.11613675,93807.0,93804.0,0.053415]
[1735716137961,0.002,93805.0,93804.0,0.053415]
[1735716139457,0.11813675,93807.0,93804.0,0.053415]
[1735716140163,0.11613675,93807.0,93804.0,0.053415]
[1735716140362,0.002,93805.0,93804.0,0.053415]
[1735716141067,0.053414,93806.0,93804.0,0.053415]
[1735716142665,0.002,93805.0,93804.0,0.053415]
[1735716143465,0.055414,93806.0,93804.0,0.053415]
[1735716143873,0.053415,93805.0,93804.0,0.053415]
[1735716144267,0.055415,93805.0,93804.0,0.053415]
[1735716146472,0.054415,93805.0,93804.0,0.053415]
[1735716153367,0.001,93805.0,93804.0,0.053415]
[1735716153575,0.001,93805.0,93802.0,0.053416]
[1735716153780,0.001,93805.0,93804.0,0.053415]
[1735716154176,0.3608,93825.0,93801.0,0.3608]
[1735716154384,0.053399,93832.0,93822.0,0.3608]
[1735716154634,0.053399,93832.0,93828.0,0.053401]
[1735716154769,0.053399,93832.0,93823.0,0.0619]
[1735716154770,0.16897121,93832.0,93823.0,0.0619]
[1735716155087,0.16897121,93832.0,93829.0,0.053401]
[1735716156275,0.16897121,93832.0,93829.0,0.054401]
[1735716156971,0.17097121,93832.0,93829.0,0.054401]
[1735716157369,0.0534,93831.0,93829.0,0.054401]
[1735716157779,0.12183772,93830.0,93829.0,0.054401]
[1735716158369,0.12183772,93830.0,93829.0,0.001]
[1735716159279,0.17523872,93830.0,93829.0,0.001]
[1735716159665,0.053401,93830.0,93829.0,0.001]
[1735716160080,0.16994832,93830.0,93829.0,0.001]
[1735716161280,0.17194832,93830.0,93829.0,0.001]
[1735716161671,0.053405,93823.0,93822.0,0.3608]
[1735716161872,0.053408,93817.0,93812.0,0.3608]
[1735716162073,0.053408,93817.0,93813.0,0.05341]
[1735716162267,0.053409,93815.0,93813.0,0.05341]
[1735716163983,0.05341,93814.0,93813.0,0.05341]
[1735716165681,0.05541,93814.0,93813.0,0.05341]
[1735716166072,0.05641,93814.0,93813.0,0.05341]
[1735716168077,0.07872588,93814.0,93813.0,0.05341]
[1735716175378,0.07872588,93814.0,93813.0,0.41421]
[1735716175588,0.07872588,93814.0,93813.0,0.05341]
[1735716175788,0.07872588,93814.0,93813.0,0.41421]
[1735716176881,0.02531588,93814.0,93813.0,0.41421]
[1735716181880,0.02531588,93814.0,93813.0,0.05341]
[1735716182080,0.02531588,93814.0,93813.0,0.41421]
[1735716183688,0.02531588,93814.0,93813.0,0.35408223]
[1735716183884,0.02531588,93814.0,93813.0,0.40749223]
[1735716184934,0.02531588,93814.0,93813.0,0.05341]
[1735716185091,0.02531588,93814.0,93813.0,0.41421]
[1735716185387,0.02531588,93814.0,93813.0,0.05341]
[1735716185688,0.02531588,93814.0,93813.0,0.41421]
[1735716190670,0.14714388,93814.0,93813.0,0.41421]
[1735716190795,0.20055388,93814.0,93813.0,0.3608]
[1735716192299,0.20055388,93814.0,93812.0,0.053411]
[1735716193903,0.19955388,93814.0,93812.0,0.053411]
[1735716194103,0.19855388,93814.0,93812.0,0.053411]
[1735716195102,0.19955388,93814.0,93812.0,0.053411]
[1735716195600,0.19855388,93814.0,93812.0,0.053411]
[1735716195902,0.19955388,93814.0,93812.0,0.053411]
[1735716196199,0.053411,93811.0,93805.0,0.3608]
[1735716196589,0.16740457,93811.0,93805.0,0.3608]
[1735716197289,0.16840457,93811.0,93805.0,0.3608]
[1735716197489,0.16940457,93811.0,93805.0,0.3608]
[1735716198901,0.17040457,93811.0,93805.0,0.3608]
[1735716199287,0.17040457,93811.0,93804.0,0.053415]
[1735716200001,0.053415,93806.0,93804.0,0.053415]
[1735716200397,0.16991005,93805.0,93801.0,0.053417]
[1735716200596,0.16991005,93805.0,93802.0,0.053416]
[1735716200801,0.053415,93805.0,93802.0,0.053416]
[1735716200999,0.053415,93804.0,93802.0,0.053416]
[1735716202005,0.07179299,93812.0,93802.0,0.053416]
[1735716202395,0.11250373,93805.0,93802.0,0.053416]
[1735716202801,0.001,93805.0,93802.0,0.053416]
[1735716203006,0.053416,93803.0,93802.0,0.053416]
[1735716204301,0.053417,93801.0,93800.0,0.3608]
[1735716204705,0.17563938,93801.0,93800.0,0.3608]
[1735716210302,0.053419,93798.0,93797.0,0.053419]
[1735716210909,0.17567709,93798.0,93790.0,0.07179299]
[1735716211112,0.17567709,93798.0,93792.0,0.053422]
[1735716211703,0.17567709,93798.0,93797.0,0.3608]
[1735716213208,0.17567709,93798.0,93797.0,0.3618]
[1735716215805,0.17567709,93798.0,93797.0,0.30165951]
[1735716219009,0.17567709,93798.0,93797.0,0.001]
[1735716221208,0.02512376,93798.0,93797.0,0.001]
[1735716222008,0.07854276,93798.0,93797.0,0.001]
[1735716251433,0.30407244,93805.0,93797.0,0.001]
[1735716251677,0.11824604,93798.0,93797.0,0.001]
[1735716251838,0.17166504,93798.0,93797.0,0.001]
[1735716252033,0.053419,93798.0,93797.0,0.001]
[1735716252442,0.17050016,93798.0,93797.0,0.001]
[1735716254243,0.11708116,93798.0,93791.0,0.3608]
[1735716254447,0.17050016,93798.0,93797.0,0.001]
[1735716254647,0.053419,93798.0,93797.0,0.001]
[1735716254851,0.16516025,93798.0,93797.0,0.001]
[1735716255048,0.16516025,93798.0,93791.0,0.3608]
[1735716255049,0.11174125,93798.0,93791.0,0.3608]
[1735716255233,0.11174125,93798.0,93797.0,0.001]
[1735716255438,0.07179299,93801.0,93797.0,0.001]
[1735716255645,0.12043446,93800.0,93797.0,0.001]
[1735716255951,0.11729392,93803.0,93797.0,0.001]
[1735716256339,0.3608,93805.0,93797.0,0.001]
[1735716256534,0.11729392,93802.0,93797.0,0.001]
[1735716256851,0.3608,93805.0,93797.0,0.001]
[1735716256852,0.11729392,93803.0,93797.0,0.001]
[1735716257151,0.053419,93798.0,93797.0,0.001]
[1735716257553,0.17121522,93798.0,93797.0,0.001]
[1735716257901,0.053422,93792.0,93791.0,0.36336]
[1735716258053,0.053422,93792.0,93791.0,0.3628]
[1735716259044,0.053422,93792.0,93791.0,0.3608]
[1735716259240,0.052422,93792.0,93791.0,0.3608]
[1735716260737,0.052422,93792.0,93791.0,0.3628]
[1735716261144,0.052422,93792.0,93791.0,0.3648]
[1735716261490,0.08316975,93792.0,93791.0,0.3648]
[1735716268345,0.08316975,93792.0,93791.0,0.004]
[1735716289968,0.08316975,93792.0,93791.0,0.057422]
[1735716290465,0.3608,93805.0,93791.0,0.004]
[1735716290792,0.3608,93805.0,93803.0,0.053415]
[1735716290975,0.3995749,93805.0,93804.0,0.085915]
[1735716293166,0.4005749,93805.0,93804.0,0.085915]
[1735716301168,0.0397749,93805.0,93804.0,0.085915]
[1735716302374,0.0387749,93805.0,93804.0,0.085915]
[1735716302670,0.053413,93808.0,93805.0,0.053414]
[1735716302875,0.053413,93808.0,93806.0,0.053414]
[1735716303266,0.10269265,93808.0,93806.0,0.053414]
[1735716303468,0.053414,93805.0,93803.0,0.053415]
[1735716306375,0.053414,93805.0,93804.0,0.053415]
[1735716309079,0.054414,93805.0,93804.0,0.053415]
[1735716316701,0.001,93805.0,93804.0,0.053415]
[1735716319296,0.053412,93810.0,93797.0,0.36136]
[1735716319605,0.12068133,93809.0,93807.0,0.053413]
[1735716319799,0.17409333,93809.0,93807.0,0.053413]
[1735716320201,0.053412,93809.0,93807.0,0.0390177]
[1735716320400,0.11777292,93808.0,93807.0,0.0390177]
[1735716323406,0.11877292,93808.0,93807.0,0.0390177]
[1735716328211,0.11877292,93808.0,93807.0,0.02876208]
[1735716335024,0.11777292,93808.0,93807.0,0.02876208]
[1735716335403,0.1112105,93810.0,93808.0,0.053412]
[1735716335608,0.41015212,93811.0,93809.0,0.053412]
[1735716335804,0.41015212,93811.0,93809.0,0.04168437]
[1735716336115,0.1112105,93810.0,93809.0,0.04168437]
[1735716336316,0.1112105,93810.0,93809.0,0.03100469]
[1735716336717,0.1122105,93810.0,93809.0,0.03100469]
[1735716338719,0.1656215,93810.0,93809.0,0.03100469]
[1735716339921,0.28057486,93810.0,93809.0,0.03100469]
[1735716342526,0.08549006,93810.0,93809.0,0.03100469]
[1735716343020,0.25807178,93810.0,93809.0,0.03100469]
[1735716343826,0.17258172,93810.0,93809.0,0.03100469]
[1735716344431,0.17258172,93810.0,93809.0,0.02256072]
[1735716345225,0.17358172,93810.0,93809.0,0.02256072]
[1735716351626,0.12017072,93810.0,93809.0,0.38336072]
[1735716357131,0.17358172,93810.0,93809.0,0.38336072]
[1735716363329,0.17358172,93810.0,93809.0,0.02256072]
[1735716364049,0.17358172,93810.0,93809.0,0.05356072]
[1735716367643,0.17358172,93810.0,93809.0,0.031]
[1735716370211,0.17358172,93810.0,93809.0,0.3918]
[1735716378437,0.17358172,93810.0,93809.0,0.031]
[1735716383543,0.17358172,93810.0,93809.0,0.3918]
[1735716388766,0.17358172,93810.0,93809.0,0.445212]
[1735716391855,0.04177696,93811.0,93809.0,0.445212]
[1735716392070,0.414203,93826.0,93809.0,0.445212]
[1735716392361,0.12044011,93810.0,93809.0,0.445212]
[1735716392555,0.11908838,93825.0,93809.0,0.445212]
[1735716392760,0.4597681,93826.0,93809.0,0.445212]
[1735716392964,0.11908838,93825.0,93809.0,0.445212]
[1735716393157,0.001,93811.0,93809.0,0.445212]
[1735716393549,0.12182985,93810.0,93809.0,0.445212]
[1735716395252,0.12282985,93810.0,93809.0,0.445212]
[1735716398458,0.053402,93828.0,93810.0,0.053411]
[1735716398811,0.3608,93837.0,93826.0,0.053402]
[1735716398812,0.12141274,93827.0,93826.0,0.053402]
[1735716399162,0.12141274,93827.0,93821.0,0.36136]
[1735716399163,0.05639981,93831.0,93828.0,0.053401]
[1735716399562,0.11469068,93829.0,93828.0,0.053401]
[1735716399762,0.11469068,93830.0,93828.0,0.053401]
[1735716399962,0.05639981,93831.0,93828.0,0.053401]
[1735716400152,0.05639981,93831.0,93830.0,0.0534]
[1735716400550,0.1793202,93831.0,93830.0,0.0534]
[1735716402665,0.1793202,93831.0,93830.0,0.0544]
[1735716409972,0.1793202,93831.0,93830.0,0.0534]
[1735716412965,0.2327192,93831.0,93830.0,0.0534]
[1735716414884,0.2327192,93831.0,93822.0,0.0318]
[1735716415069,0.2327192,93831.0,93826.0,0.053402]
[1735716415070,0.1793202,93831.0,93826.0,0.053402]
[1735716415377,0.0534,93830.0,93826.0,0.053402]
[1735716415673,0.11293974,93829.0,93826.0,0.053402]
[1735716425184,0.05639981,93831.0,93826.0,0.053402]
[1735716425429,0.11911761,93828.0,93826.0,0.053402]
[1735716425781,0.05639981,93831.0,93826.0,0.053402]
[1735716425981,0.0534,93830.0,93826.0,0.053402]
[1735716426193,0.12275564,93827.0,93826.0,0.053402]
[1735716426379,0.12275564,93828.0,93826.0,0.053402]
[1735716426691,0.0534,93830.0,93826.0,0.053402]
[1735716426879,0.12204502,93827.0,93826.0,0.053402]
[1735716427133,0.12204502,93828.0,93826.0,0.053402]
[1735716427283,0.12204502,93829.0,93826.0,0.053402]
[1735716427578,0.0534,93830.0,93826.0,0.053402]
[1735716427788,0.11117092,93829.0,93826.0,0.053402]
[1735716437884,0.11117092,93829.0,93825.0,0.3608]
[1735716437885,0.11117092,93829.0,93825.0,0.36144]
[1735716438194,0.11117092,93829.0,93822.0,0.0318]
[1735716438491,0.11117092,93829.0,93825.0,0.3608]
[1735716438691,0.11117092,93829.0,93822.0,0.0318]
[1735716438891,0.11117092,93829.0,93826.0,0.053402]
[1735716454605,0.11117092,93829.0,93827.0,0.053402]
[1735716458298,0.11117092,93829.0,93825.0,0.00056]
[1735716458607,0.05639981,93831.0,93825.0,0.3608]
[1735716458825,0.11612043,93830.0,93829.0,0.053401]
[1735716459284,0.05639981,93831.0,93829.0,0.053401]
[1735716459406,0.11612043,93830.0,93829.0,0.053401]
[1735716459803,0.053376,93873.0,93825.0,0.36136]
[1735716459804,0.05477074,93837.0,93825.0,0.36136]
[1735716460000,0.053391,93847.0,93841.0,0.053394]
[1735716460206,0.053391,93847.0,93846.0,0.3608]
[1735716460511,0.17591947,93847.0,93846.0,0.3608]
[1735716461199,0.17591947,93847.0,93846.0,0.30068773]
[1735716461408,0.12252847,93847.0,93846.0,0.30068773]
[1735716461598,0.12252847,93847.0,93846.0,0.30168773]
[1735716461798,0.05339,93849.0,93846.0,0.30168773]
[1735716462204,0.12037734,93848.0,93846.0,0.30168773]
[1735716465910,0.053391,93847.0,93846.0,0.30168773]
[1735716466311,0.16496075,93847.0,93846.0,0.30168773]
[1735716475120,0.16496075,93847.0,93846.0,0.35507873]
[1735716476210,0.11156975,93847.0,93846.0,0.35507873]
[1735716482520,0.11156975,93847.0,93846.0,0.054391]
[1735716482720,0.0522695,93849.0,93848.0,0.05339]
[1735716483045,0.0638343,93853.0,93848.0,0.05339]
[1735716483520,0.11438279,93852.0,93848.0,0.05339]
[1735716483907,0.11438279,93852.0,93846.0,0.001]
[1735716484116,0.11438279,93852.0,93849.0,0.053389]
[1735716484318,0.11438279,93852.0,93851.0,0.053388]
[1735716485715,0.11438279,93852.0,93851.0,0.054388]
[1735716500321,0.16777079,93852.0,93851.0,0.054388]
[1735716502939,0.16777079,93852.0,93851.0,0.001]
[1735716524361,0.053388,93852.0,93851.0,0.001]
[1735716535455,0.07179299,93861.0,93851.0,0.001]
[1735716535669,0.053387,93854.0,93853.0,0.3608]
[1735716535858,0.11182709,93860.0,93846.0,0.053391]
[1735716536059,0.053388,93852.0,93846.0,0.053391]
[1735716536368,0.053388,93852.0,93851.0,0.3608]
[1735716538654,0.08535303,93852.0,93851.0,0.3608]
[1735716543576,0.03196503,93852.0,93846.0,0.053391]
[1735716543776,0.053389,93851.0,93846.0,0.053391]
[1735716546178,0.053389,93850.0,93846.0,0.053391]
[1735716550392,0.053389,93849.0,93846.0,0.053391]
[1735716553117,0.053387,93854.0,93850.0,0.053388]
[1735716553441,0.11812209,93858.0,93850.0,0.053388]
[1735716553793,0.053388,93852.0,93850.0,0.053388]
[1735716564396,0.053388,93852.0,93851.0,0.053388]
[1735716571101,0.053386,93856.0,93853.0,0.053387]
[1735716571497,0.11510021,93855.0,93853.0,0.053387]
[1735716577707,0.11510021,93855.0,93853.0,0.054387]
[1735716578404,0.11510021,93855.0,93853.0,0.053387]
[1735716587814,0.11510021,93855.0,93854.0,0.053387]
[1735716596514,0.11510021,93855.0,93851.0,0.3608]
[1735716596515,0.11510021,93855.0,93851.0,0.35408226]
[1735716596892,0.11510021,93855.0,93854.0,0.053387]
[1735716606429,0.11510021,93855.0,93848.0,0.3608]
[1735716606430,0.11510021,93855.0,93848.0,0.35408071]
[1735716607124,0.11510021,93855.0,93847.0,0.3608]
[1735716607929,0.11510021,93855.0,93854.0,0.053387]
[1735716616436,0.11510021,93855.0,93850.0,0.3608]
[1735716617733,0.03330188,93859.0,93853.0,0.053387]
[1735716617946,0.21828145,93863.0,93842.0,0.053393]
[1735716618133,0.3608,93848.0,93838.0,0.3934]
[1735716618333,0.3608,93848.0,93847.0,0.053391]
[1735716618636,0.48272318,93848.0,93847.0,0.053391]
[1735716619233,0.48272318,93848.0,93838.0,0.0326]
[1735716619541,0.55451617,93848.0,93819.0,0.3608]
[1735716619742,0.053397,93836.0,93824.0,0.0326]
[1735716620038,0.053397,93836.0,93824.0,0.086003]
[1735716620300,0.16448733,93836.0,93824.0,0.0326]
[1735716620435,0.16448733,93836.0,93825.0,0.053403]
[1735716620938,0.16448733,93836.0,93826.0,0.053403]
[1735716621329,0.16448733,93836.0,93835.0,0.00359841]
[1735716621543,0.16448733,93836.0,93835.0,0.00559841]
[1735716623239,0.2077651,93836.0,93835.0,0.00559841]
[1735716623443,0.2077651,93836.0,93835.0,0.00359841]
[1735716623654,0.2077651,93836.0,93835.0,0.00559841]
[1735716626540,0.2077651,93836.0,93828.0,0.053401]
[1735716627242,0.2077651,93836.0,93834.0,0.053398]
[1735716627243,0.1543681,93836.0,93834.0,0.053398]
[1735716628544,0.1543681,93836.0,93834.0,0.057398]
[1735716641757,0.1543681,93836.0,93835.0,0.0306]
[1735716643059,0.1543681,93836.0,93835.0,0.0336]
[1735716646259,0.2077651,93836.0,93835.0,0.0336]
[1735716646460,0.2077651,93836.0,93835.0,0.003]
[1735716660167,0.2077651,93836.0,93835.0,0.00217167]
[1735716667993,0.1543681,93836.0,93835.0,0.05556967]
[1735716668270,0.3608,93838.0,93837.0,0.053396]
[1735716669462,0.3608,93838.0,93836.0,0.0626]
[1735716669463,0.3608,93838.0,93836.0,0.05588023]
[1735716669864,0.3608,93838.0,93837.0,0.053396]
[1735716672777,0.3608,93838.0,93837.0,0.054396]
[1735716683087,0.05395919,93843.0,93842.0,0.053394]
[1735716683283,0.053392,93846.0,93838.0,0.0314]
[1735716683478,0.053392,93846.0,93845.0,0.053392]
[1735716684589,0.053392,93846.0,93845.0,0.03834765]
[1735716685187,0.05492179,93846.0,93845.0,0.053392]
[1735716685374,0.001,93846.0,93845.0,0.053392]
[1735716685986,0.004,93846.0,93845.0,0.053392]
[1735716687188,0.003,93846.0,93845.0,0.053392]
[1735716689685,0.003,93846.0,93845.0,0.414192]
[1735716691697,0.05244148,93848.0,93847.0,0.053388]
[1735716691896,0.053386,93854.0,93845.0,0.3608]
[1735716692081,0.053386,93854.0,93853.0,0.053386]
[1735716692485,0.22317141,93854.0,93853.0,0.053386]
[1735716693311,0.16978541,93854.0,93853.0,0.053386]
[1735716694597,0.17078541,93854.0,93853.0,0.053386]
[1735716694788,0.17378541,93854.0,93853.0,0.054386]
[1735716696306,0.05638269,93854.0,93853.0,0.054386]
[1735716709906,0.22334786,93854.0,93853.0,0.001]
[1735716712720,0.053395,93841.0,93839.0,0.053395]
[1735716715011,0.053395,93841.0,93839.0,0.054395]
[1735716715214,0.053395,93840.0,93839.0,0.054395]
[1735716716211,0.053395,93840.0,93839.0,0.053395]
[1735716716403,0.054395,93840.0,93839.0,0.053395]
[1735716718313,0.09956016,93840.0,93839.0,0.053395]
[1735716723172,0.04616516,93840.0,93839.0,0.053395]
[1735716723842,0.04616516,93840.0,93839.0,0.414195]
[1735716724338,0.001,93840.0,93839.0,0.414195]
[1735716731554,0.001,93840.0,93839.0,0.053395]
[1735716731846,0.001,93840.0,93839.0,0.414195]
[1735716744258,0.001,93840.0,93839.0,0.415195]
[1735716744458,0.04599835,93842.0,93839.0,0.415195]
[1735716744654,0.05339,93849.0,93839.0,0.415195]
[1735716744855,0.05339,93849.0,93848.0,0.05339]
[1735716745255,0.17355244,93849.0,93848.0,0.05339]
[1735716746163,0.21308421,93849.0,93848.0,0.05339]
[1735716746562,0.15969421,93849.0,93848.0,0.05339]
[1735716747455,0.16369421,93849.0,93848.0,0.05339]
[1735716751763,0.16369421,93849.0,93842.0,0.3608]
[1735716751971,0.414191,93848.0,93830.0,0.5984706]
[1735716752162,0.414191,93848.0,93830.0,0.5979106]
[1735716752362,0.116052,93847.0,93830.0,0.5979106]
[1735716752760,0.116052,93847.0,93844.0,0.053392]
[1735716752970,0.116052,93847.0,93844.0,0.03881701]
[1735716753268,0.169443,93847.0,93830.0,0.57661171]
[1735716753865,0.169443,93847.0,93830.0,0.6484047]
[1735716754058,0.169443,93847.0,93841.0,0.053394]
[1735716754453,0.169443,93847.0,93842.0,0.053394]
[1735716757466,0.053392,93845.0,93842.0,0.053394]
[1735716757862,0.11532445,93844.0,93842.0,0.053394]
[1735716760550,0.11832445,93844.0,93842.0,0.053394]
[1735716764459,0.11832445,93844.0,93830.0,0.43259299]
[1735716764460,0.053393,93843.0,93838.0,0.053395]
[1735716764860,0.11296411,93842.0,93830.0,0.43259299]
[1735716765173,0.11296411,93842.0,93839.0,0.053395]
[1735716766960,0.16635811,93842.0,93839.0,0.053395]
[1735716767223,0.053394,93842.0,93839.0,0.053395]
[1735716767377,0.12233313,93841.0,93839.0,0.053395]
[1735716767882,0.17572713,93841.0,93839.0,0.053395]
[1735716768378,0.053394,93841.0,93839.0,0.053395]
[1735716768670,0.12270578,93840.0,93839.0,0.053395]
[1735716770378,0.12370578,93840.0,93839.0,0.053395]
[1735716770873,0.17710078,93840.0,93839.0,0.053395]
[1735716780283,0.53790078,93840.0,93839.0,0.053395]
[1735716780485,0.17710078,93840.0,93839.0,0.03057097]
[1735716784301,0.12370578,93840.0,93839.0,0.03057097]
[1735716790795,0.12370578,93840.0,93839.0,0.39137097]
[1735716796794,0.12370578,93840.0,93839.0,0.03057097]
[1735716796988,0.12370578,93840.0,93839.0,0.39137097]
[1735716798906,0.12370578,93840.0,93839.0,0.03057097]
[1735716799111,0.12370578,93840.0,93839.0,0.39137097]
[1735716799304,0.12370578,93840.0,93839.0,0.35130696]
[1735716799704,0.12370578,93840.0,93836.0,0.0633]
[1735716799893,0.12370578,93840.0,93839.0,0.414195]
[1735716801007,0.12270578,93840.0,93839.0,0.414195]
[1735716801311,0.12067723,93843.0,93839.0,0.3608]
[1735716801503,0.12067723,93843.0,93840.0,0.053394]
[1735716803407,0.12267723,93843.0,93840.0,0.053394]
[1735716805112,0.12267723,93843.0,93837.0,0.3608]
[1735716805314,0.12267723,93843.0,93841.0,0.053394]
[1735716806409,0.12067723,93843.0,93841.0,0.053394]
[1735716806710,0.12267723,93843.0,93841.0,0.053394]
[1735716807623,0.12267723,93843.0,93842.0,0.053394]
[1735716810011,0.12067723,93843.0,93842.0,0.053394]
[1735716810212,0.12367723,93843.0,93842.0,0.053394]
[1735716812454,0.17707023,93843.0,93842.0,0.053394]
[1735716815628,0.17707023,93843.0,93836.0,0.0633]
[1735716815629,0.053394,93842.0,93836.0,0.0633]
[1735716815820,0.053394,93842.0,93839.0,0.053395]
[1735716816016,0.16560971,93841.0,93839.0,0.053395]
[1735716816619,0.053394,93841.0,93839.0,0.053395]
[1735716816820,0.11412874,93840.0,93839.0,0.053395]
[1735716817927,0.11512874,93840.0,93839.0,0.053395]
[1735716828431,0.11512874,93840.0,93839.0,0.414195]
[1735716828730,0.16852374,93840.0,93839.0,0.414195]
[1735716829123,0.16852374,93840.0,93839.0,0.053395]
[1735716829326,0.16852374,93840.0,93839.0,0.414195]
[1735716831525,0.16852374,93840.0,93839.0,0.053395]
[1735716831724,0.16852374,93840.0,93839.0,0.414195]
[1735716834539,0.053393,93843.0,93839.0,0.414195]
[1735716834738,0.11354588,93840.0,93839.0,0.414195]
[1735716834944,0.12208497,93842.0,93839.0,0.414195]
[1735716835137,0.053393,93843.0,93839.0,0.414195]
[1735716835537,0.17547897,93842.0,93839.0,0.3608]
[1735716835737,0.17547897,93842.0,93840.0,0.053395]
[1735716835933,0.053394,93842.0,93840.0,0.414195]
[1735716836135,0.11516399,93841.0,93840.0,0.414195]
[1735716839432,0.11716399,93841.0,93840.0,0.053395]
[1735716847232,0.11716399,93841.0,93840.0,0.414195]
[1735716852342,0.17055799,93841.0,93840.0,0.414195]
[1735716855840,0.17055799,93841.0,93840.0,0.3608]
[1735716856051,0.053397,93836.0,93831.0,0.053399]
[1735716856357,0.053398,93835.0,93831.0,0.053399]
[1735716856547,0.16657628,93835.0,93831.0,0.053399]
[1735716856755,0.11317828,93840.0,93831.0,0.053399]
[1735716856947,0.053398,93834.0,93831.0,0.053399]
[1735716857479,0.053398,93834.0,93831.0,0.055399]
[1735716857855,0.053398,93834.0,93831.0,0.057399]
[1735716860260,0.053399,93832.0,93831.0,0.004]
[1735716860671,0.16634427,93832.0,93831.0,0.004]
[1735716862454,0.11294527,93832.0,93829.0,0.30468158]
[1735716862658,0.0534,93831.0,93829.0,0.30468158]
[1735716863057,0.11709333,93830.0,93829.0,0.30468158]
[1735716864266,0.11709333,93830.0,93829.0,0.30768158]
[1735716864749,0.11709333,93830.0,93829.0,0.30968158]
[1735716865350,0.11709333,93830.0,93829.0,0.36308258]
[1735716865557,0.17049333,93830.0,93829.0,0.36308258]
[1735716865959,0.0534,93830.0,93829.0,0.36308258]
[1735716866159,0.17283205,93830.0,93829.0,0.36308258]
[1735716872468,0.17283205,93830.0,93829.0,0.30296316]
[1735716880371,0.17283205,93830.0,93829.0,0.058401]
[1735716883976,0.17283205,93830.0,93827.0,0.35908301]
[1735716884971,0.17283205,93830.0,93829.0,0.053401]
[1735716887085,0.17283205,93830.0,93829.0,0.057401]
[1735716894077,0.17283205,93830.0,93829.0,0.03213197]
[1735716899196,0.17283205,93830.0,93829.0,0.03013197]
[1735716899893,0.17283205,93830.0,93829.0,0.02813197]
[1735716900283,0.11943205,93830.0,93829.0,0.02813197]
[1735716900684,0.11456508,93833.0,93828.0,0.053401]
[1735716900979,0.053397,93835.0,93834.0,0.053398]
[1735716901388,0.17377319,93835.0,93834.0,0.053398]
[1735716901588,0.2171127,93835.0,93834.0,0.053398]
[1735716903986,0.2201127,93835.0,93834.0,0.03049788]
[1735716906096,0.1667157,93835.0,93834.0,0.03049788]
[1735716910489,0.1667157,93835.0,93834.0,0.02215087]
[1735716914093,0.1667157,93835.0,93827.0,0.32283216]
[1735716914704,0.1667157,93835.0,93833.0,0.053398]
[1735716915794,0.1637157,93835.0,93833.0,0.053398]
[1735716916200,0.0534,93830.0,93827.0,0.001]
[1735716916402,0.0534,93830.0,93829.0,0.053401]
[1735716916704,0.1708134,93830.0,93829.0,0.053401]
[1735716923115,0.053401,93828.0,93826.0,0.0326]
[1735716924301,0.053401,93828.0,93826.0,0.0336]
[1735716924631,0.3608,93840.0,93826.0,0.0336]
[1735716924632,0.053402,93827.0,93826.0,0.0336]
[1735716926018,0.053402,93827.0,93826.0,0.0346]
[1735716926313,0.053402,93827.0,93826.0,0.0336]
[1735716926616,0.053402,93827.0,93826.0,0.0346]
[1735716929019,0.08539139,93827.0,93826.0,0.0346]
[1735716951037,0.19711411,93827.0,93826.0,0.002]
[1735716966844,0.14371211,93827.0,93826.0,0.002]
[1735716967049,0.3608,93835.0,93834.0,0.053398]
[1735716967345,0.053388,93852.0,93846.0,0.053391]
[1735716967759,0.053388,93852.0,93846.0,0.03894024]
[1735716968450,0.38871264,93847.0,93846.0,0.03894024]
[1735716968649,0.39271264,93847.0,93846.0,0.03994024]
[1735716969750,0.39571264,93847.0,93846.0,0.03994024]
[1735716973852,0.44910264,93847.0,93846.0,0.001]
[1735716978168,0.5667677,93847.0,93846.0,0.001]
[1735716983858,0.68167176,93847.0,93846.0,0.001]
[1735716993771,0.053392,93844.0,93841.0,0.0302]
[1735716994165,0.1139661,93843.0,93841.0,0.0302]
[1735716994977,0.1139661,93843.0,93841.0,0.0631]
[1735716995770,0.1159661,93843.0,93841.0,0.0631]
[1735716996175,0.1693591,93843.0,93841.0,0.0631]
[1735716996672,0.39271264,93847.0,93841.0,0.0631]
[1735716996673,0.36398929,93847.0,93841.0,0.0631]
[1735716996876,0.053393,93843.0,93841.0,0.0631]
[1735716997064,0.058393,93843.0,93841.0,0.0631]
[1735716998673,0.060393,93843.0,93841.0,0.0631]
[1735716999877,0.007,93843.0,93841.0,0.0631]
[1735717000182,0.053393,93842.0,93841.0,0.0631]
[1735717001597,0.058393,93842.0,93841.0,0.0631]
[1735717015383,0.058393,93842.0,93841.0,0.116494]
[1735717016695,0.055393,93842.0,93841.0,0.116494]
[1735717017397,0.056393,93842.0,93841.0,0.116494]
[1735717019695,0.053393,93842.0,93841.0,0.116494]
[1735717020000,0.056393,93842.0,93841.0,0.116494]
[1735717021296,0.053393,93842.0,93841.0,0.116494]
[1735717021499,0.056393,93842.0,93841.0,0.116494]
[1735717023399,0.003,93842.0,93841.0,0.116494]
[1735717026102,0.02791264,93847.0,93841.0,0.116494]
[1735717026103,0.02791264,93847.0,93846.0,0.053391]
[1735717026306,0.3608,93850.0,93841.0,0.0631]
[1735717026510,0.3608,93850.0,93847.0,0.05339]
[1735717027503,0.3638,93850.0,93847.0,0.05339]
[1735717028896,0.3618,93850.0,93847.0,0.05339]
[1735717029098,0.3668,93850.0,93847.0,0.05339]
[1735717029307,0.38892407,93850.0,93841.0,0.0631]
[1735717029499,0.38892407,93850.0,93849.0,0.053389]
[1735717030493,0.38392407,93850.0,93849.0,0.053389]
[1735717030698,0.38892407,93850.0,93849.0,0.053389]
[1735717031907,0.44131307,93850.0,93849.0,0.053389]
[1735717032610,0.05339,93849.0,93844.0,0.053392]
[1735717033706,0.05739,93849.0,93844.0,0.053392]
[1735717034216,0.05839,93849.0,93844.0,0.053392]
[1735717034901,0.005,93849.0,93844.0,0.053392]
[1735717035103,0.05339,93848.0,93844.0,0.053392]
[1735717036320,0.05739,93848.0,93844.0,0.053392]